[Event "Live Chess"]
[Site "Chess.com"]
[Date "2023.05.21"]
[Round "-"]
[White "ameetghasi100"]
[Black "SupremeTactician"]
[Result "0-1"]
[WhiteElo "2591"]
[BlackElo "2230"]
[TimeControl "300"]
[EndTime "4:06:15 PDT"]
[Termination "SupremeTactician won on time"]

1. d4 {[%clk 0:04:59.5]} 1... Nf6 {[%clk 0:04:55.6]} 2. c4 {[%clk 0:04:59.4]}
2... e6 {[%clk 0:04:55]} 3. Nc3 {[%clk 0:04:59.3]} 3... b6 {[%clk 0:04:54.3]} 4.
Nf3 {[%clk 0:04:59.2]} 4... Bb7 {[%clk 0:04:53.6]} 5. e3 {[%clk 0:04:57.2]} 5...
Be7 {[%clk 0:04:52.2]} 6. Bd3 {[%clk 0:04:56.1]} 6... O-O {[%clk 0:04:51.9]} 7.
O-O {[%clk 0:04:54.9]} 7... d6 {[%clk 0:04:51.5]} 8. b3 {[%clk 0:04:53.1]} 8...
Nbd7 {[%clk 0:04:51.2]} 9. Bb2 {[%clk 0:04:52.1]} 9... Re8 {[%clk 0:04:51]} 10.
Ne2 {[%clk 0:04:51.4]} 10... Nf8 {[%clk 0:04:50.8]} 11. Ng3 {[%clk 0:04:50]}
11... Ng6 {[%clk 0:04:50.1]} 12. Qc2 {[%clk 0:04:48]} 12... Rc8 {[%clk
0:04:46.5]} 13. Rac1 {[%clk 0:04:44.7]} 13... c5 {[%clk 0:04:45.3]} 14. d5
{[%clk 0:04:42]} 14... exd5 {[%clk 0:04:43.9]} 15. cxd5 {[%clk 0:04:41.9]} 15...
Bxd5 {[%clk 0:04:42.4]} 16. Rfd1 {[%clk 0:04:38.9]} 16... Bxf3 {[%clk 0:04:41]}
17. gxf3 {[%clk 0:04:38.8]} 17... Qc7 {[%clk 0:04:38.6]} 18. Nf5 {[%clk
0:04:36.8]} 18... Bf8 {[%clk 0:04:38]} 19. Bxf6 {[%clk 0:04:34.9]} 19... gxf6
{[%clk 0:04:36.9]} 20. f4 {[%clk 0:04:33.3]} 20... d5 {[%clk 0:04:34]} 21. Be2
{[%clk 0:04:31]} 21... d4 {[%clk 0:04:32.9]} 22. Bf3 {[%clk 0:04:29]} 22... dxe3
{[%clk 0:04:32]} 23. fxe3 {[%clk 0:04:28.9]} 23... Rcd8 {[%clk 0:04:25.1]} 24.
h4 {[%clk 0:04:27.8]} 24... Ne7 {[%clk 0:04:14.2]} 25. Qg2+ {[%clk 0:04:19.9]}
25... Kh8 {[%clk 0:04:12]} 26. Ng3 {[%clk 0:04:08.8]} 26... Rxd1+ {[%clk
0:03:50.4]} 27. Rxd1 {[%clk 0:04:03.5]} 27... Rd8 {[%clk 0:03:50.3]} 28. Qb2
{[%clk 0:03:28.9]} 28... Rxd1+ {[%clk 0:03:24.5]} 29. Bxd1 {[%clk 0:03:25.8]}
29... Bg7 {[%clk 0:03:23]} 30. Nh5 {[%clk 0:03:23.8]} 30... Qd6 {[%clk
0:03:10.1]} 31. Bf3 {[%clk 0:03:18.5]} 31... Nf5 {[%clk 0:03:08.2]} 32. Qg2
{[%clk 0:03:03.3]} 32... Bf8 {[%clk 0:02:50.3]} 33. Qe2 {[%clk 0:02:34.8]} 33...
Nxh4 {[%clk 0:02:43.9]} 34. Bh1 {[%clk 0:02:13.6]} 34... Nf5 {[%clk 0:02:25]}
35. e4 {[%clk 0:02:10]} 35... Nd4 {[%clk 0:02:24]} 36. Qg4 {[%clk 0:02:09.1]}
36... f5 {[%clk 0:02:16.6]} 37. exf5 {[%clk 0:02:06.4]} 37... Qe7 {[%clk
0:02:05.7]} 38. Bg2 {[%clk 0:01:56.9]} 38... Qe3+ {[%clk 0:02:03.9]} 39. Kh2
{[%clk 0:01:53.6]} 39... Qe2 {[%clk 0:01:57]} 40. Qh3 {[%clk 0:01:42.7]} 40...
Bh6 {[%clk 0:01:06.6]} 41. f6 {[%clk 0:01:39.7]} 41... Ne6 {[%clk 0:00:56]} 42.
Qf5 {[%clk 0:01:23.9]} 42... Qe3 {[%clk 0:00:36.7]} 43. Kh1 {[%clk 0:00:37]}
43... Qc1+ {[%clk 0:00:31.2]} 44. Kh2 {[%clk 0:00:34.2]} 44... Bxf4+ {[%clk
0:00:30.7]} 45. Kh3 {[%clk 0:00:30.8]} 45... Qe3+ {[%clk 0:00:20.5]} 46. Kg4
{[%clk 0:00:27.6]} 46... Bh6 {[%clk 0:00:19.8]} 47. Be4 {[%clk 0:00:22.6]} 47...
Qg5+ {[%clk 0:00:19.1]} 48. Qxg5 {[%clk 0:00:21.2]} 48... Bxg5 {[%clk 0:00:19]}
49. Bd5 {[%clk 0:00:20.3]} 49... Bd2 {[%clk 0:00:17.5]} 50. a4 {[%clk
0:00:17.8]} 50... Nd8 {[%clk 0:00:15.8]} 51. Bc4 {[%clk 0:00:17.7]} 51... Bb4
{[%clk 0:00:14.3]} 52. Kf5 {[%clk 0:00:17.6]} 52... a5 {[%clk 0:00:13.6]} 53.
Bd5 {[%clk 0:00:17.5]} 53... b5 {[%clk 0:00:12.9]} 54. Nf4 {[%clk 0:00:17.1]}
54... bxa4 {[%clk 0:00:12.2]} 55. bxa4 {[%clk 0:00:16.8]} 55... Kg8 {[%clk
0:00:11.6]} 56. Nd3 {[%clk 0:00:16.4]} 56... Kf8 {[%clk 0:00:11.5]} 57. Ne5
{[%clk 0:00:16]} 57... Bc3 {[%clk 0:00:10.8]} 58. Nc4 {[%clk 0:00:15.5]} 58...
Ke8 {[%clk 0:00:10.7]} 59. Nd6+ {[%clk 0:00:15.1]} 59... Kd7 {[%clk 0:00:10.2]}
60. Ne4 {[%clk 0:00:15]} 60... Nc6 {[%clk 0:00:09.6]} 61. Nxc5+ {[%clk
0:00:14.2]} 61... Kd6 {[%clk 0:00:08.7]} 62. Ne4+ {[%clk 0:00:13.8]} 62... Kxd5
{[%clk 0:00:08.1]} 63. Nxc3+ {[%clk 0:00:13.7]} 63... Kc4 {[%clk 0:00:07.8]} 64.
Nb5 {[%clk 0:00:13.6]} 64... Kb4 {[%clk 0:00:07.4]} 65. Nc7 {[%clk 0:00:13.2]}
65... Kxa4 {[%clk 0:00:07.1]} 66. Nd5 {[%clk 0:00:12.9]} 66... Nd4+ {[%clk
0:00:07]} 67. Ke4 {[%clk 0:00:10.8]} 67... Nb3 {[%clk 0:00:06.9]} 68. Nc3+
{[%clk 0:00:09.5]} 68... Kb4 {[%clk 0:00:06.8]} 69. Nd5+ {[%clk 0:00:09.1]}
69... Ka3 {[%clk 0:00:06.1]} 70. Ne3 {[%clk 0:00:09]} 70... a4 {[%clk 0:00:06]}
71. Nc4+ {[%clk 0:00:06.7]} 71... Ka2 {[%clk 0:00:05.3]} 72. Ne3 {[%clk
0:00:06.6]} 72... Kb1 {[%clk 0:00:05.2]} 73. Nd5 {[%clk 0:00:05.9]} 73... a3
{[%clk 0:00:05.1]} 74. Nc3+ {[%clk 0:00:05.5]} 74... Kb2 {[%clk 0:00:04.3]} 75.
Na4+ {[%clk 0:00:04.2]} 75... Kc2 {[%clk 0:00:03.7]} 76. Nc3 {[%clk 0:00:04.1]}
76... a2 {[%clk 0:00:03.3]} 77. Na4 {[%clk 0:00:03.9]} 77... a1=Q {[%clk
0:00:02.6]} 78. Nc3 {[%clk 0:00:03.8]} 78... Qe1+ {[%clk 0:00:02.3]} 79. Ne2
{[%clk 0:00:02.3]} 79... Qc3 {[%clk 0:00:02.2]} 0-1

[Event "Live Chess"]
[Site "Chess.com"]
[Date "2023.05.21"]
[Round "-"]
[White "Chesscoach_Golichenko"]
[Black "wot-not"]
[Result "1-0"]
[WhiteElo "2618"]
[BlackElo "1568"]
[TimeControl "300"]
[EndTime "4:06:19 PDT"]
[Termination "Chesscoach_Golichenko won by resignation"]

1. d4 {[%clk 0:04:55.8]} 1... Nf6 {[%clk 0:04:57.3]} 2. c4 {[%clk 0:04:53.8]}
2... g6 {[%clk 0:04:55.7]} 3. Nc3 {[%clk 0:04:52]} 3... Bg7 {[%clk 0:04:53.3]}
4. e4 {[%clk 0:04:50.7]} 4... d6 {[%clk 0:04:51]} 5. Be2 {[%clk 0:04:48.4]} 5...
O-O {[%clk 0:04:49.9]} 6. Bg5 {[%clk 0:04:46.5]} 6... c5 {[%clk 0:04:42.4]} 7.
d5 {[%clk 0:04:39.9]} 7... e5 {[%clk 0:04:38.1]} 8. Qd2 {[%clk 0:04:30.6]} 8...
a6 {[%clk 0:04:24.3]} 9. a4 {[%clk 0:04:28.3]} 9... Nbd7 {[%clk 0:04:05.5]} 10.
h4 {[%clk 0:04:26.1]} 10... Qb6 {[%clk 0:03:57.8]} 11. a5 {[%clk 0:04:12.7]}
11... Qb4 {[%clk 0:03:44]} 12. f3 {[%clk 0:03:48.4]} 12... b6 {[%clk 0:03:39.6]}
13. Ra4 {[%clk 0:03:43.7]} 13... Qxb2 {[%clk 0:03:36.2]} 14. Qxb2 {[%clk
0:03:37.3]} 1-0

[Event "Live Chess"]
[Site "Chess.com"]
[Date "2023.05.21"]
[Round "-"]
[White "f4nomore"]
[Black "matt1979"]
[Result "0-1"]
[WhiteElo "1390"]
[BlackElo "1554"]
[TimeControl "300"]
[EndTime "4:06:20 PDT"]
[Termination "matt1979 won by resignation"]

1. d4 {[%clk 0:04:55.1]} 1... e6 {[%clk 0:04:57.1]} 2. Nf3 {[%clk 0:04:52.5]}
2... f5 {[%clk 0:04:55.7]} 3. e3 {[%clk 0:04:50.9]} 3... Nf6 {[%clk 0:04:54.4]}
4. Bd3 {[%clk 0:04:47.4]} 4... Be7 {[%clk 0:04:51.3]} 5. O-O {[%clk 0:04:45.8]}
5... O-O {[%clk 0:04:50.1]} 6. Nc3 {[%clk 0:04:44.1]} 6... b6 {[%clk 0:04:45.1]}
7. a3 {[%clk 0:04:42.1]} 7... Bb7 {[%clk 0:04:43.9]} 8. Ne5 {[%clk 0:04:37.4]}
8... d6 {[%clk 0:04:40.2]} 9. Nc4 {[%clk 0:04:34]} 9... Qe8 {[%clk 0:04:21.4]}
10. d5 {[%clk 0:04:14.7]} 10... Nxd5 {[%clk 0:04:00.8]} 11. Nxd5 {[%clk
0:04:05]} 11... Bxd5 {[%clk 0:03:58.3]} 12. Nd2 {[%clk 0:03:54.5]} 12... Qg6
{[%clk 0:03:48.1]} 13. e4 {[%clk 0:03:49.5]} 13... fxe4 {[%clk 0:03:42.8]} 14.
Nxe4 {[%clk 0:03:45.4]} 14... Qf7 {[%clk 0:03:30.4]} 15. Ng3 {[%clk 0:03:33.6]}
15... g6 {[%clk 0:03:16.1]} 16. Bh6 {[%clk 0:03:29.5]} 16... Re8 {[%clk
0:03:11.6]} 17. Qg4 {[%clk 0:03:18.9]} 17... Bf6 {[%clk 0:03:04]} 18. c3 {[%clk
0:03:13.7]} 18... Bg7 {[%clk 0:03:02.1]} 19. Be3 {[%clk 0:03:04.2]} 19... Nc6
{[%clk 0:02:51.3]} 20. c4 {[%clk 0:02:56.7]} 20... Ne5 {[%clk 0:02:46.5]} 21.
Qd4 {[%clk 0:02:41.4]} 21... Bb7 {[%clk 0:02:35.7]} 22. Qg4 {[%clk 0:02:21.3]}
22... Nxg4 {[%clk 0:02:33.7]} 0-1

[Event "Live Chess"]
[Site "Chess.com"]
[Date "2023.05.21"]
[Round "-"]
[White "gmnorfolk"]
[Black "JoshMcK"]
[Result "1-0"]
[WhiteElo "2107"]
[BlackElo "1511"]
[TimeControl "300"]
[EndTime "4:06:21 PDT"]
[Termination "gmnorfolk won by resignation"]

1. d4 {[%clk 0:04:58.4]} 1... d5 {[%clk 0:04:58.4]} 2. c4 {[%clk 0:04:56.8]}
2... e6 {[%clk 0:04:57.7]} 3. Nc3 {[%clk 0:04:55.2]} 3... Nf6 {[%clk 0:04:57.2]}
4. cxd5 {[%clk 0:04:54.7]} 4... exd5 {[%clk 0:04:56.4]} 5. Bg5 {[%clk
0:04:54.2]} 5... c6 {[%clk 0:04:52.2]} 6. e3 {[%clk 0:04:52.8]} 6... Be7 {[%clk
0:04:42.7]} 7. Bd3 {[%clk 0:04:51]} 7... O-O {[%clk 0:04:40.7]} 8. Qc2 {[%clk
0:04:48.2]} 8... Re8 {[%clk 0:04:37]} 9. h3 {[%clk 0:04:45.6]} 9... Ne4 {[%clk
0:04:30.3]} 10. Bxe7 {[%clk 0:04:42]} 10... Qxe7 {[%clk 0:04:30.2]} 11. Nf3
{[%clk 0:04:40.4]} 11... Nxc3 {[%clk 0:04:22.3]} 12. bxc3 {[%clk 0:04:31.1]}
12... Nd7 {[%clk 0:04:20.8]} 13. Bxh7+ {[%clk 0:04:28.6]} 13... Kh8 {[%clk
0:04:19.1]} 14. Bd3 {[%clk 0:04:28.2]} 14... Nf6 {[%clk 0:04:17.9]} 15. O-O
{[%clk 0:04:23]} 15... Ne4 {[%clk 0:04:13.1]} 16. Bxe4 {[%clk 0:04:21.3]} 16...
Qxe4 {[%clk 0:04:10.9]} 17. Qxe4 {[%clk 0:04:19.4]} 17... Rxe4 {[%clk
0:04:10.8]} 18. Nd2 {[%clk 0:04:16]} 18... Re6 {[%clk 0:04:09.2]} 19. c4 {[%clk
0:04:12.7]} 19... Rg6 {[%clk 0:04:02.3]} 20. Kh2 {[%clk 0:04:09.6]} 20... dxc4
{[%clk 0:03:55.5]} 21. Nxc4 {[%clk 0:04:08.3]} 21... Be6 {[%clk 0:03:51.7]} 22.
Ne5 {[%clk 0:04:05.2]} 22... Rf6 {[%clk 0:03:49.1]} 23. f4 {[%clk 0:04:03.2]}
23... Bd5 {[%clk 0:03:44]} 24. g4 {[%clk 0:04:01.5]} 24... Re6 {[%clk
0:03:41.2]} 25. Nxf7+ {[%clk 0:03:57.2]} 25... Kg8 {[%clk 0:03:37.5]} 26. Ne5
{[%clk 0:03:56.1]} 26... Rae8 {[%clk 0:03:32.6]} 27. f5 {[%clk 0:03:55.4]} 27...
R6e7 {[%clk 0:03:30.7]} 28. f6 {[%clk 0:03:53.5]} 28... gxf6 {[%clk 0:03:29.5]}
29. Rxf6 {[%clk 0:03:52.7]} 29... c5 {[%clk 0:03:25.6]} 30. Raf1 {[%clk
0:03:39.7]} 30... cxd4 {[%clk 0:03:23.4]} 31. exd4 {[%clk 0:03:39.2]} 31... Bxa2
{[%clk 0:03:22]} 32. Ra1 {[%clk 0:03:31.7]} 32... Bd5 {[%clk 0:03:15.7]} 33.
Rxa7 {[%clk 0:03:30]} 33... Rc7 {[%clk 0:03:04]} 34. Ra5 {[%clk 0:03:27]} 34...
Rc2+ {[%clk 0:02:57.8]} 35. Kg3 {[%clk 0:03:25]} 35... Bc6 {[%clk 0:02:50.6]}
36. Nxc6 {[%clk 0:03:20.1]} 36... bxc6 {[%clk 0:02:49.6]} 37. Rc5 {[%clk
0:03:18]} 37... Rxc5 {[%clk 0:02:37.8]} 38. dxc5 {[%clk 0:03:16.3]} 38... Rc8
{[%clk 0:02:33.6]} 39. g5 {[%clk 0:03:14.2]} 39... Kg7 {[%clk 0:02:32.7]} 40.
Rd6 {[%clk 0:03:12]} 40... Kf7 {[%clk 0:02:29.5]} 41. Kg4 {[%clk 0:03:10.7]}
41... Kg7 {[%clk 0:02:28.4]} 42. h4 {[%clk 0:03:09.8]} 1-0

[Event "Live Chess"]
[Site "Chess.com"]
[Date "2023.05.21"]
[Round "-"]
[White "Ocelot32"]
[Black "Swetha_Queen"]
[Result "1-0"]
[WhiteElo "1379"]
[BlackElo "351"]
[TimeControl "300"]
[EndTime "4:06:34 PDT"]
[Termination "Ocelot32 won by checkmate"]

1. e4 {[%clk 0:04:58.7]} 1... e5 {[%clk 0:04:57.9]} 2. Nf3 {[%clk 0:04:57.5]}
2... Nf6 {[%clk 0:04:55.4]} 3. Nxe5 {[%clk 0:04:54.1]} 3... Nxe4 {[%clk
0:04:53.6]} 4. Bc4 {[%clk 0:04:47.7]} 4... Bd6 {[%clk 0:04:46.6]} 5. Nxf7 {[%clk
0:04:38.3]} 5... O-O {[%clk 0:04:36.2]} 6. Nxd8+ {[%clk 0:04:35.5]} 6... Rf7
{[%clk 0:04:05.4]} 7. Nxf7 {[%clk 0:04:32.1]} 7... Nc5 {[%clk 0:03:53.3]} 8. Qf3
{[%clk 0:04:24.9]} 8... c6 {[%clk 0:03:48.2]} 9. Nh6+ {[%clk 0:04:21.5]} 9...
Kh8 {[%clk 0:03:32.5]} 10. Qf7 {[%clk 0:04:11.6]} 10... Be7 {[%clk 0:02:58.5]}
11. Qg8# {[%clk 0:04:08.4]} 1-0

[Event "Live Chess"]
[Site "Chess.com"]
[Date "2023.05.21"]
[Round "-"]
[White "HoarseyHorsey"]
[Black "EdenHazard8"]
[Result "0-1"]
[WhiteElo "1458"]
[BlackElo "1949"]
[TimeControl "300"]
[EndTime "4:06:38 PDT"]
[Termination "EdenHazard8 won by resignation"]

1. d4 {[%clk 0:04:58.2]} 1... Nf6 {[%clk 0:04:58.5]} 2. c4 {[%clk 0:04:57.5]}
2... e6 {[%clk 0:04:56.5]} 3. Nc3 {[%clk 0:04:55.1]} 3... d5 {[%clk 0:04:55.6]}
4. cxd5 {[%clk 0:04:53.9]} 4... exd5 {[%clk 0:04:55.5]} 5. Bg5 {[%clk
0:04:51.7]} 5... c6 {[%clk 0:04:54.3]} 6. e3 {[%clk 0:04:50.9]} 6... Bd6 {[%clk
0:04:52.9]} 7. Nf3 {[%clk 0:04:50.1]} 7... h6 {[%clk 0:04:51.7]} 8. Bh4 {[%clk
0:04:48.6]} 8... O-O {[%clk 0:04:50.8]} 9. Bd3 {[%clk 0:04:46.6]} 9... Re8
{[%clk 0:04:49.9]} 10. O-O {[%clk 0:04:45.2]} 10... Nbd7 {[%clk 0:04:48.8]} 11.
Re1 {[%clk 0:04:44.2]} 11... Nf8 {[%clk 0:04:47.6]} 12. Qc2 {[%clk 0:04:32]}
12... Be7 {[%clk 0:04:38.1]} 13. e4 {[%clk 0:04:28.2]} 13... dxe4 {[%clk
0:04:22]} 14. Nxe4 {[%clk 0:04:25.2]} 14... Nxe4 {[%clk 0:04:20.8]} 15. Bxe7
{[%clk 0:04:22.1]} 15... Qxe7 {[%clk 0:04:19.7]} 16. Bxe4 {[%clk 0:04:19.2]}
16... Be6 {[%clk 0:04:17.9]} 17. d5 {[%clk 0:04:10.3]} 17... cxd5 {[%clk
0:04:15.5]} 18. Bxd5 {[%clk 0:04:08.8]} 18... Rac8 {[%clk 0:04:14]} 19. Qb3
{[%clk 0:04:01.2]} 19... Qc7 {[%clk 0:04:06.3]} 20. Bxe6 {[%clk 0:03:55]} 20...
Nxe6 {[%clk 0:04:06.2]} 21. Rad1 {[%clk 0:03:45.8]} 21... Nf4 {[%clk 0:04:03.3]}
22. Re3 {[%clk 0:03:17.9]} 22... Rxe3 {[%clk 0:03:55.9]} 23. Qxe3 {[%clk
0:03:17.8]} 23... Qc2 {[%clk 0:03:53]} 24. Re1 {[%clk 0:03:03.3]} 24... Nd3
{[%clk 0:03:48.4]} 25. Rf1 {[%clk 0:02:57.7]} 25... Nxb2 {[%clk 0:03:44]} 26.
Nd4 {[%clk 0:02:50.7]} 26... Qd3 {[%clk 0:03:37.8]} 27. Qf4 {[%clk 0:02:38.8]}
27... Rc4 {[%clk 0:03:35]} 28. Qb8+ {[%clk 0:02:31.8]} 28... Kh7 {[%clk
0:03:34.6]} 29. Nf3 {[%clk 0:02:26.3]} 29... Nd1 {[%clk 0:03:15.7]} 30. Ne5
{[%clk 0:02:02.4]} 30... Qd4 {[%clk 0:03:14]} 31. Nxc4 {[%clk 0:01:59]} 31...
Nc3 {[%clk 0:03:12.6]} 32. Ne3 {[%clk 0:01:49]} 32... Qd3 {[%clk 0:03:10.1]} 33.
Qxb7 {[%clk 0:01:38]} 33... f5 {[%clk 0:03:07.3]} 34. h4 {[%clk 0:01:10.9]}
34... f4 {[%clk 0:03:05.9]} 35. Ng4 {[%clk 0:01:06.9]} 35... Ne2+ {[%clk
0:03:04.4]} 36. Kh1 {[%clk 0:01:05.3]} 36... Ng3+ {[%clk 0:03:03.2]} 37. fxg3
{[%clk 0:00:59.9]} 37... Qxf1+ {[%clk 0:03:03.1]} 38. Kh2 {[%clk 0:00:59]} 38...
fxg3+ {[%clk 0:03:02.4]} 39. Kxg3 {[%clk 0:00:58.3]} 39... Qd3+ {[%clk 0:03:02]}
40. Qf3 {[%clk 0:00:55.1]} 40... Qd6+ {[%clk 0:03:00.3]} 41. Kh3 {[%clk
0:00:49.6]} 41... Qe6 {[%clk 0:02:55.9]} 42. Qd3+ {[%clk 0:00:47.1]} 42... g6
{[%clk 0:02:52.7]} 43. Kg3 {[%clk 0:00:29.6]} 43... h5 {[%clk 0:02:49.8]} 44.
Ne3 {[%clk 0:00:24.6]} 44... Qxa2 {[%clk 0:02:44.6]} 45. Qd7+ {[%clk 0:00:22]}
45... Kh6 {[%clk 0:02:39.1]} 46. Qd6 {[%clk 0:00:18.7]} 46... Qf7 {[%clk
0:02:29.8]} 47. Nd5 {[%clk 0:00:12.8]} 47... Kg7 {[%clk 0:02:26.1]} 48. Qf4
{[%clk 0:00:10.8]} 48... Qxd5 {[%clk 0:02:23.7]} 0-1

[Event "Live Chess"]
[Site "Chess.com"]
[Date "2023.05.21"]
[Round "-"]
[White "mikeybaby1986"]
[Black "JoeRoot66"]
[Result "0-1"]
[WhiteElo "1299"]
[BlackElo "1918"]
[TimeControl "300"]
[EndTime "4:06:39 PDT"]
[Termination "JoeRoot66 won by resignation"]

1. e4 {[%clk 0:04:57.4]} 1... c6 {[%clk 0:04:58.9]} 2. Nf3 {[%clk 0:04:50.5]}
2... d5 {[%clk 0:04:58.8]} 3. d4 {[%clk 0:04:47]} 3... dxe4 {[%clk 0:04:57.2]}
4. Ng5 {[%clk 0:04:45.6]} 4... Nf6 {[%clk 0:04:55.5]} 5. Nc3 {[%clk 0:04:44.2]}
5... Bf5 {[%clk 0:04:53.5]} 6. f3 {[%clk 0:04:40.3]} 6... exf3 {[%clk
0:04:49.5]} 7. Qxf3 {[%clk 0:04:38.1]} 7... Bg6 {[%clk 0:04:46.5]} 8. Bc4 {[%clk
0:04:32.7]} 8... h6 {[%clk 0:04:43.8]} 9. Nge4 {[%clk 0:03:27.5]} 9... Nxe4
{[%clk 0:04:41.8]} 10. Nxe4 {[%clk 0:03:21.8]} 10... Qxd4 {[%clk 0:04:41]} 11.
Qe3 {[%clk 0:02:36]} 11... Qxe4 {[%clk 0:04:36.5]} 12. Qxe4 {[%clk 0:02:22.8]}
12... Bxe4 {[%clk 0:04:36.4]} 13. O-O {[%clk 0:02:20.3]} 13... e6 {[%clk
0:04:34.3]} 14. Bf4 {[%clk 0:02:08.7]} 14... Nd7 {[%clk 0:04:30.2]} 15. Rfe1
{[%clk 0:02:00.1]} 15... Bd5 {[%clk 0:04:27.2]} 16. Bd3 {[%clk 0:01:48.1]} 16...
Bc5+ {[%clk 0:04:24.1]} 17. Kh1 {[%clk 0:01:43.7]} 17... O-O {[%clk 0:04:21.5]}
18. c4 {[%clk 0:01:33]} 18... Bxc4 {[%clk 0:04:08.7]} 19. Bxc4 {[%clk
0:01:31.7]} 19... Nf6 {[%clk 0:04:08.4]} 20. Rad1 {[%clk 0:01:13.4]} 20... Rfd8
{[%clk 0:04:06]} 21. Be5 {[%clk 0:01:04.8]} 21... Nd5 {[%clk 0:04:00.4]} 22. h3
{[%clk 0:00:55.6]} 22... Ne3 {[%clk 0:03:56.5]} 23. Rxd8+ {[%clk 0:00:44.4]}
23... Rxd8 {[%clk 0:03:52.6]} 24. b4 {[%clk 0:00:30.9]} 24... Nxc4 {[%clk
0:03:48.2]} 0-1

[Event "Live Chess"]
[Site "Chess.com"]
[Date "2023.05.21"]
[Round "-"]
[White "Ian-Morley"]
[Black "howitzer14"]
[Result "0-1"]
[WhiteElo "1051"]
[BlackElo "2890"]
[TimeControl "300"]
[EndTime "4:06:41 PDT"]
[Termination "howitzer14 won by resignation"]

1. d4 {[%clk 0:04:46.2]} 1... d5 {[%clk 0:04:58.5]} 2. Nf3 {[%clk 0:04:44.9]}
2... Bf5 {[%clk 0:04:55.4]} 3. Bf4 {[%clk 0:04:43.5]} 3... c5 {[%clk 0:04:54.1]}
4. e3 {[%clk 0:04:40.7]} 4... Nc6 {[%clk 0:04:45.4]} 5. c3 {[%clk 0:04:39.8]}
5... Qb6 {[%clk 0:04:44.2]} 6. Qb3 {[%clk 0:04:38.2]} 6... c4 {[%clk 0:04:42.6]}
7. Qxb6 {[%clk 0:04:37.3]} 7... axb6 {[%clk 0:04:42]} 8. b3 {[%clk 0:04:36.6]}
8... b5 {[%clk 0:04:40.8]} 9. bxc4 {[%clk 0:04:31.8]} 9... bxc4 {[%clk
0:04:40.7]} 10. Ne5 {[%clk 0:04:26.9]} 10... e6 {[%clk 0:04:39.5]} 11. Nxc6
{[%clk 0:04:25.6]} 11... bxc6 {[%clk 0:04:39.4]} 12. h3 {[%clk 0:04:22.2]} 12...
Nf6 {[%clk 0:04:37.4]} 13. Nd2 {[%clk 0:04:20.3]} 13... Ba3 {[%clk 0:04:36.2]}
14. g4 {[%clk 0:04:14.9]} 14... Bg6 {[%clk 0:04:35]} 15. g5 {[%clk 0:03:52.2]}
15... Nd7 {[%clk 0:04:32.9]} 16. Nf3 {[%clk 0:03:44.2]} 16... Bb2 {[%clk
0:04:31.9]} 17. Rd1 {[%clk 0:03:36.6]} 17... Bxc3+ {[%clk 0:04:31.3]} 18. Nd2
{[%clk 0:03:28.8]} 18... Rxa2 {[%clk 0:04:31.2]} 19. e4 {[%clk 0:03:25.6]} 19...
Bxe4 {[%clk 0:04:27.9]} 20. Ke2 {[%clk 0:03:19.5]} 20... Bxh1 {[%clk 0:04:25.7]}
21. Bd6 {[%clk 0:03:06.1]} 21... Bxd4 {[%clk 0:04:22.2]} 22. f4 {[%clk
0:03:00.5]} 22... c3 {[%clk 0:04:20.6]} 0-1